[Event "Late-Titled-Tuesday-Blitz-January-30-2024"]
[Site "Chess.com"]
[Date "2024.01.30"]
[Round "2"]
[White "el_sporco"]
[Black "ChessSkool"]
[Result "0-1"]
[WhiteElo "2377"]
[BlackElo "2714"]
[TimeControl "180+1"]
[EndTime "14:18:18 PST"]
[Termination "ChessSkool won by resignation"]

1. e4 {[%clk 0:03:00.9]} 1... c6 {[%clk 0:02:59.9]} 2. d4 {[%clk 0:02:48.4]}
2... d5 {[%clk 0:03:00.8]} 3. Nd2 {[%clk 0:02:48.4]} 3... dxe4 {[%clk
0:03:00.6]} 4. Nxe4 {[%clk 0:02:49.3]} 4... Bf5 {[%clk 0:02:59.5]} 5. Ng3 {[%clk
0:02:49.2]} 5... Bg6 {[%clk 0:02:59.7]} 6. h4 {[%clk 0:02:49.8]} 6... h6 {[%clk
0:02:59.9]} 7. Nf3 {[%clk 0:02:50.7]} 7... e6 {[%clk 0:03:00.5]} 8. h5 {[%clk
0:02:48.5]} 8... Bh7 {[%clk 0:03:01]} 9. Bd3 {[%clk 0:02:49.1]} 9... Bxd3 {[%clk
0:03:01.3]} 10. Qxd3 {[%clk 0:02:50]} 10... Nf6 {[%clk 0:03:01.9]} 11. Bd2
{[%clk 0:02:49.9]} 11... c5 {[%clk 0:02:56.9]} 12. O-O-O {[%clk 0:02:46.8]}
12... Nc6 {[%clk 0:02:57.6]} 13. Be3 {[%clk 0:02:35.4]} 13... Qa5 {[%clk
0:02:54.5]} 14. Kb1 {[%clk 0:02:28.8]} 14... O-O-O {[%clk 0:02:37.9]} 15. Qd2
{[%clk 0:02:17.1]} 15... Qxd2 {[%clk 0:02:01.7]} 16. Rxd2 {[%clk 0:02:18]} 16...
Ng4 {[%clk 0:01:59.4]} 17. Rhd1 {[%clk 0:02:14.1]} 17... cxd4 {[%clk 0:01:49.8]}
18. Nxd4 {[%clk 0:02:04.2]} 18... Nxe3 {[%clk 0:01:27.7]} 19. Nxc6 {[%clk
0:02:03.8]} 19... Rxd2 {[%clk 0:01:02]} 20. Nxa7+ {[%clk 0:02:03.4]} 20... Kb8
{[%clk 0:01:02.1]} 21. Rxd2 {[%clk 0:02:04.3]} 21... Nc4 {[%clk 0:01:01.9]} 22.
Rd4 {[%clk 0:02:03.1]} 22... Nd6 {[%clk 0:00:57.9]} 23. Ra4 {[%clk 0:01:54.6]}
23... b5 {[%clk 0:00:42.5]} 24. Ra5 {[%clk 0:01:18.1]} 24... Nc4 {[%clk
0:00:33.3]} 25. Nc6+ {[%clk 0:00:28.5]} 25... Kc7 {[%clk 0:00:33.2]} 26. Rxb5
{[%clk 0:00:15.6]} 26... Kxc6 {[%clk 0:00:32.9]} 27. a4 {[%clk 0:00:16.5]} 27...
Bc5 {[%clk 0:00:26.1]} 28. Ne4 {[%clk 0:00:15.9]} 28... Be7 {[%clk 0:00:20.7]}
29. Ka1 {[%clk 0:00:15.8]} 29... f5 {[%clk 0:00:16.9]} 30. Nc3 {[%clk 0:00:13]}
30... Bf6 {[%clk 0:00:16.8]} 31. Ka2 {[%clk 0:00:12.9]} 31... Bxc3 {[%clk
0:00:16]} 32. bxc3 {[%clk 0:00:13.8]} 32... Nb6 {[%clk 0:00:13.6]} 33. Kb3
{[%clk 0:00:13.7]} 33... Ra8 {[%clk 0:00:14]} 34. g4 {[%clk 0:00:02.6]} 34...
Nxa4 {[%clk 0:00:11.8]} 35. Rb4 {[%clk 0:00:02.4]} 35... Nc5+ {[%clk 0:00:11.8]}
36. Kc4 {[%clk 0:00:02.9]} 36... fxg4 {[%clk 0:00:11.3]} 37. Rb5 {[%clk
0:00:03.4]} 37... Ne4 {[%clk 0:00:10.9]} 38. Re5 {[%clk 0:00:03.5]} 38... Nd6+
{[%clk 0:00:10.9]} 39. Kd3 {[%clk 0:00:03.8]} 39... Kd7 {[%clk 0:00:10.5]} 40.
Re3 {[%clk 0:00:04.2]} 40... Ra4 {[%clk 0:00:10.5]} 41. Rg3 {[%clk 0:00:04]}
41... Rf4 {[%clk 0:00:10.9]} 42. Ke3 {[%clk 0:00:03.9]} 42... e5 {[%clk
0:00:11.6]} 43. Kd3 {[%clk 0:00:04]} 43... Ke6 {[%clk 0:00:12]} 44. c4 {[%clk
0:00:03.6]} 44... Nxc4 {[%clk 0:00:11.6]} 45. Kc3 {[%clk 0:00:02.7]} 45... Kf5
{[%clk 0:00:12]} 46. Kb4 {[%clk 0:00:02.9]} 46... Nd2+ {[%clk 0:00:11]} 47. Kb5
{[%clk 0:00:02.9]} 47... Ne4 {[%clk 0:00:11.9]} 48. Rd3 {[%clk 0:00:02.2]} 48...
Rxf2 {[%clk 0:00:12]} 49. c4 {[%clk 0:00:03.1]} 49... Rb2+ {[%clk 0:00:11.5]}
50. Ka6 {[%clk 0:00:03.7]} 50... g3 {[%clk 0:00:11.4]} 51. Rd7 {[%clk
0:00:04.1]} 51... g2 {[%clk 0:00:11.3]} 52. Rxg7 {[%clk 0:00:03.7]} 52... Ng5
{[%clk 0:00:11.6]} 0-1

[Event "Late-Titled-Tuesday-Blitz-January-30-2024"]
[Site "Chess.com"]
[Date "2024.01.30"]
[Round "2"]
[White "FabianoCaruana"]
[Black "NoHeThTo"]
[Result "1/2-1/2"]
[WhiteElo "3042"]
[BlackElo "2651"]
[TimeControl "180+1"]
[EndTime "14:18:21 PST"]
[Termination "Game drawn by repetition"]

1. d3 {[%clk 0:03:00.9]} 1... Nf6 {[%clk 0:02:58.7]} 2. e4 {[%clk 0:03:00.2]}
2... d6 {[%clk 0:02:59]} 3. Nc3 {[%clk 0:02:58.9]} 3... c5 {[%clk 0:02:59.1]} 4.
g3 {[%clk 0:02:58.7]} 4... g6 {[%clk 0:02:59.2]} 5. Bg2 {[%clk 0:02:59.2]} 5...
Bg7 {[%clk 0:02:59.8]} 6. Nge2 {[%clk 0:02:59.3]} 6... Nc6 {[%clk 0:02:59.8]} 7.
O-O {[%clk 0:02:59.7]} 7... O-O {[%clk 0:02:59.5]} 8. h3 {[%clk 0:02:58.8]} 8...
Nd7 {[%clk 0:02:59.5]} 9. f4 {[%clk 0:02:57.6]} 9... Rb8 {[%clk 0:02:59.8]} 10.
g4 {[%clk 0:02:54.8]} 10... e6 {[%clk 0:02:59.2]} 11. Ng3 {[%clk 0:02:43]} 11...
Nd4 {[%clk 0:02:56.5]} 12. Nce2 {[%clk 0:02:41.6]} 12... f5 {[%clk 0:02:44.7]}
13. exf5 {[%clk 0:02:34.9]} 13... exf5 {[%clk 0:02:43.1]} 14. g5 {[%clk
0:02:29.4]} 14... b6 {[%clk 0:02:37.1]} 15. c3 {[%clk 0:02:26.2]} 15... Nxe2+
{[%clk 0:02:36.9]} 16. Nxe2 {[%clk 0:02:22.8]} 16... Bb7 {[%clk 0:02:32.7]} 17.
Be3 {[%clk 0:02:20.3]} 17... Bxg2 {[%clk 0:02:31.8]} 18. Kxg2 {[%clk 0:02:21.2]}
18... Qc7 {[%clk 0:02:28.9]} 19. Qb3+ {[%clk 0:02:18.4]} 19... Rf7 {[%clk
0:02:28.8]} 20. Rae1 {[%clk 0:02:17.6]} 20... Kf8 {[%clk 0:02:28.1]} 21. h4
{[%clk 0:02:14.9]} 21... Qc6+ {[%clk 0:02:22.7]} 22. Kg3 {[%clk 0:02:04.4]}
22... Re8 {[%clk 0:02:20.5]} 23. Ng1 {[%clk 0:01:56.7]} 23... Rfe7 {[%clk
0:02:18.7]} 24. Bf2 {[%clk 0:01:52.7]} 24... Rxe1 {[%clk 0:01:42.7]} 25. Rxe1
{[%clk 0:01:53.6]} 25... Rxe1 {[%clk 0:01:42.5]} 26. Bxe1 {[%clk 0:01:52.9]}
26... d5 {[%clk 0:01:12.6]} 27. Nf3 {[%clk 0:01:50.2]} 27... h5 {[%clk
0:01:09.3]} 28. Bf2 {[%clk 0:01:36.5]} 28... Ke7 {[%clk 0:01:03.1]} 29. d4
{[%clk 0:01:31.6]} 29... Kd8 {[%clk 0:00:51.9]} 30. Qd1 {[%clk 0:01:21.1]} 30...
c4 {[%clk 0:00:48.2]} 31. b3 {[%clk 0:01:15.7]} 31... cxb3 {[%clk 0:00:45.8]}
32. Qxb3 {[%clk 0:01:15.3]} 32... b5 {[%clk 0:00:46]} 33. Ne5 {[%clk 0:01:10]}
33... Bxe5 {[%clk 0:00:45.8]} 34. dxe5 {[%clk 0:01:10.8]} 34... a6 {[%clk
0:00:42.6]} 35. Qa3 {[%clk 0:00:59.3]} 35... Ke8 {[%clk 0:00:39.1]} 36. Be3
{[%clk 0:00:56.3]} 36... Nf8 {[%clk 0:00:39]} 37. Kf2 {[%clk 0:00:48.5]} 37...
Ne6 {[%clk 0:00:37.8]} 38. Qb4 {[%clk 0:00:48.7]} 38... Kf7 {[%clk 0:00:31.5]}
39. Ke1 {[%clk 0:00:41.4]} 39... Qc4 {[%clk 0:00:30.5]} 40. Qd6 {[%clk
0:00:39.7]} 40... Qxc3+ {[%clk 0:00:29.5]} 41. Kf2 {[%clk 0:00:39.3]} 41... Qc2+
{[%clk 0:00:25.7]} 42. Kg3 {[%clk 0:00:37.8]} 42... Qd3 {[%clk 0:00:21.2]} 43.
Qd7+ {[%clk 0:00:37.9]} 43... Kf8 {[%clk 0:00:21.5]} 44. Qc8+ {[%clk 0:00:32.7]}
44... Kf7 {[%clk 0:00:21.5]} 45. Qd7+ {[%clk 0:00:31]} 45... Kf8 {[%clk
0:00:21.9]} 46. Kf2 {[%clk 0:00:29.2]} 46... d4 {[%clk 0:00:20.7]} 47. Qc8+
{[%clk 0:00:23.4]} 47... Kf7 {[%clk 0:00:18.9]} 48. Bc1 {[%clk 0:00:23.6]} 48...
Qh3 {[%clk 0:00:14.7]} 49. Qd7+ {[%clk 0:00:23]} 49... Kf8 {[%clk 0:00:12.6]}
50. Qxe6 {[%clk 0:00:22.8]} 50... Qh2+ {[%clk 0:00:11.5]} 51. Ke1 {[%clk
0:00:23]} 51... Qg1+ {[%clk 0:00:11.5]} 52. Kd2 {[%clk 0:00:23.4]} 52... Qe3+
{[%clk 0:00:11.7]} 53. Kc2 {[%clk 0:00:19.4]} 53... Qc3+ {[%clk 0:00:11.9]} 54.
Kd1 {[%clk 0:00:15.7]} 54... Qf3+ {[%clk 0:00:10.9]} 55. Kd2 {[%clk 0:00:15.5]}
55... Qe3+ {[%clk 0:00:10.5]} 56. Kd1 {[%clk 0:00:15.3]} 56... Qf3+ {[%clk
0:00:10.9]} 57. Ke1 {[%clk 0:00:15.9]} 57... Qh1+ {[%clk 0:00:08.8]} 58. Ke2
{[%clk 0:00:13.7]} 58... Qe4+ {[%clk 0:00:09.1]} 59. Kd1 {[%clk 0:00:11.7]}
59... Qf3+ {[%clk 0:00:08.5]} 1/2-1/2

[Event "Late-Titled-Tuesday-Blitz-January-30-2024"]
[Site "Chess.com"]
[Date "2024.01.30"]
[Round "2"]
[White "Vasily85"]
[Black "Beca95"]
[Result "1/2-1/2"]
[WhiteElo "2443"]
[BlackElo "2965"]
[TimeControl "180+1"]
[EndTime "14:18:22 PST"]
[Termination "Game drawn by repetition"]

1. Nf3 {[%clk 0:02:59.1]} 1... d5 {[%clk 0:02:59.4]} 2. d4 {[%clk 0:02:58.8]}
2... Bf5 {[%clk 0:02:59.3]} 3. c4 {[%clk 0:02:58.6]} 3... e6 {[%clk 0:02:59.7]}
4. Nc3 {[%clk 0:02:58.3]} 4... Nf6 {[%clk 0:03:00.1]} 5. Bg5 {[%clk 0:02:54.3]}
5... c6 {[%clk 0:02:59.5]} 6. e3 {[%clk 0:02:31.5]} 6... h6 {[%clk 0:02:57.5]}
7. Bh4 {[%clk 0:02:30.8]} 7... Nbd7 {[%clk 0:02:54.7]} 8. Bd3 {[%clk 0:02:30.8]}
8... Bg4 {[%clk 0:02:50.4]} 9. h3 {[%clk 0:02:29.2]} 9... Bxf3 {[%clk
0:02:49.7]} 10. Qxf3 {[%clk 0:02:27.9]} 10... Bd6 {[%clk 0:02:48.2]} 11. O-O
{[%clk 0:02:27]} 11... Qb8 {[%clk 0:02:46.7]} 12. e4 {[%clk 0:02:17.3]} 12...
dxe4 {[%clk 0:02:46.5]} 13. Nxe4 {[%clk 0:02:17.8]} 13... Nxe4 {[%clk
0:02:46.7]} 14. Bxe4 {[%clk 0:02:17.5]} 14... Qc7 {[%clk 0:02:46.4]} 15. Rfe1
{[%clk 0:02:11.8]} 15... O-O {[%clk 0:02:41.2]} 16. Bc2 {[%clk 0:02:11.1]} 16...
Rfe8 {[%clk 0:02:40.1]} 17. Rad1 {[%clk 0:01:59.3]} 17... Nf8 {[%clk 0:02:37.1]}
18. Qg4 {[%clk 0:01:26.7]} 18... Be7 {[%clk 0:02:36.8]} 19. Bg3 {[%clk
0:01:26.4]} 19... Bd6 {[%clk 0:02:37.1]} 20. Bh4 {[%clk 0:01:25.9]} 20... Be7
{[%clk 0:02:36.4]} 21. Bg3 {[%clk 0:01:26.1]} 21... Qd8 {[%clk 0:02:36.8]} 22.
d5 {[%clk 0:01:10.2]} 22... exd5 {[%clk 0:02:36.2]} 23. cxd5 {[%clk 0:01:11.1]}
23... cxd5 {[%clk 0:02:36.6]} 24. Bb3 {[%clk 0:01:09.8]} 24... Bf6 {[%clk
0:02:35.3]} 25. Rxe8 {[%clk 0:01:08.5]} 25... Qxe8 {[%clk 0:02:36.2]} 26. Bxd5
{[%clk 0:01:02.8]} 26... Rd8 {[%clk 0:02:35.3]} 27. Bxb7 {[%clk 0:00:54.8]}
27... Rxd1+ {[%clk 0:02:34.8]} 28. Qxd1 {[%clk 0:00:55.7]} 28... Qb5 {[%clk
0:02:34.6]} 29. Bd5 {[%clk 0:00:52.9]} 29... Qxb2 {[%clk 0:02:33.4]} 30. Bb3
{[%clk 0:00:52.8]} 30... Qd4 {[%clk 0:02:32.3]} 31. Qe2 {[%clk 0:00:44.6]} 31...
Qd7 {[%clk 0:02:31.6]} 32. Qa6 {[%clk 0:00:42.9]} 32... Ne6 {[%clk 0:02:30.7]}
33. Bxe6 {[%clk 0:00:42.4]} 33... fxe6 {[%clk 0:02:31.6]} 34. Bb8 {[%clk
0:00:38.6]} 34... Bd4 {[%clk 0:02:31.7]} 35. Bg3 {[%clk 0:00:37.7]} 35... Kf7
{[%clk 0:02:31.4]} 36. Kh2 {[%clk 0:00:36.5]} 36... Qd5 {[%clk 0:02:31.5]} 37.
a4 {[%clk 0:00:33.9]} 37... Bb6 {[%clk 0:02:31.1]} 38. Bb8 {[%clk 0:00:29.4]}
38... Bxf2 {[%clk 0:02:18.4]} 39. Qc8 {[%clk 0:00:14.1]} 39... Bb6 {[%clk
0:02:13.1]} 40. Qc2 {[%clk 0:00:09.7]} 40... Qd7 {[%clk 0:02:08.4]} 41. Qe2
{[%clk 0:00:08.1]} 41... Bc7+ {[%clk 0:02:08]} 42. Bxc7 {[%clk 0:00:07.9]} 42...
Qxc7+ {[%clk 0:02:08.9]} 43. Kh1 {[%clk 0:00:08.4]} 43... Qc5 {[%clk 0:02:09.5]}
44. Qf3+ {[%clk 0:00:08.3]} 44... Ke7 {[%clk 0:02:08.9]} 45. Qb7+ {[%clk
0:00:08.4]} 45... Kf6 {[%clk 0:02:08.1]} 46. Qf3+ {[%clk 0:00:08.3]} 46... Kg6
{[%clk 0:02:08.6]} 47. Qg4+ {[%clk 0:00:07.8]} 47... Kf7 {[%clk 0:02:07.3]} 48.
Qf3+ {[%clk 0:00:08.1]} 48... Kg8 {[%clk 0:02:05.1]} 49. Qa8+ {[%clk 0:00:08.2]}
49... Kh7 {[%clk 0:02:05.6]} 50. Qe4+ {[%clk 0:00:08.9]} 50... Qf5 {[%clk
0:02:06]} 51. Qd4 {[%clk 0:00:07.4]} 51... a5 {[%clk 0:02:05]} 52. Qb6 {[%clk
0:00:06.7]} 52... Qd5 {[%clk 0:02:05.1]} 53. Qb5 {[%clk 0:00:03.8]} 53... Kg6
{[%clk 0:02:04.2]} 54. Qb6 {[%clk 0:00:02.7]} 54... Kf5 {[%clk 0:02:03.7]} 55.
Qb1+ {[%clk 0:00:02.7]} 55... Kf6 {[%clk 0:02:02.8]} 56. Qb2+ {[%clk 0:00:02.9]}
56... Qe5 {[%clk 0:02:03.2]} 57. Qf2+ {[%clk 0:00:03]} 57... Kg5 {[%clk
0:02:03.3]} 58. Qd2+ {[%clk 0:00:02.9]} 58... Kf5 {[%clk 0:02:03.8]} 59. Qf2+
{[%clk 0:00:03.1]} 59... Kg6 {[%clk 0:02:00.2]} 60. Qc2+ {[%clk 0:00:03.4]}
60... Qf5 {[%clk 0:02:01.1]} 61. Qc6 {[%clk 0:00:03]} 61... h5 {[%clk
0:02:01.5]} 62. Qe8+ {[%clk 0:00:02.8]} 62... Kh7 {[%clk 0:02:01.3]} 63. Qd7
{[%clk 0:00:03.1]} 63... Kh6 {[%clk 0:02:01.3]} 64. Qe8 {[%clk 0:00:03.3]} 64...
e5 {[%clk 0:01:59.4]} 65. Qh8+ {[%clk 0:00:03.5]} 65... Kg6 {[%clk 0:01:59.7]}
66. Qe8+ {[%clk 0:00:04.4]} 66... Kg5 {[%clk 0:02:00.2]} 67. Qd8+ {[%clk
0:00:03.1]} 67... Qf6 {[%clk 0:01:55.3]} 68. Qxa5 {[%clk 0:00:03.6]} 68... Qf1+
{[%clk 0:01:53.8]} 69. Kh2 {[%clk 0:00:04.1]} 69... Qf4+ {[%clk 0:01:54.3]} 70.
Kh1 {[%clk 0:00:04.7]} 70... Qd4 {[%clk 0:01:54.4]} 71. Qe1 {[%clk 0:00:01.7]}
71... e4 {[%clk 0:01:53.8]} 72. a5 {[%clk 0:00:01.9]} 72... e3 {[%clk
0:01:54.2]} 73. a6 {[%clk 0:00:02.4]} 73... h4 {[%clk 0:01:54.6]} 74. a7 {[%clk
0:00:01.9]} 74... Qxa7 {[%clk 0:01:54.2]} 75. Qb4 {[%clk 0:00:01.9]} 75... Qa1+
{[%clk 0:01:52.5]} 76. Kh2 {[%clk 0:00:02.3]} 76... Qe5+ {[%clk 0:01:52.5]} 77.
Kg1 {[%clk 0:00:02.8]} 77... Qf4 {[%clk 0:01:52.6]} 78. Qc5+ {[%clk 0:00:02.5]}
78... Kh6 {[%clk 0:01:52.1]} 79. Qc6+ {[%clk 0:00:03]} 79... g6 {[%clk
0:01:52.5]} 80. Qe8 {[%clk 0:00:02.6]} 80... Qf2+ {[%clk 0:01:49.3]} 81. Kh2
{[%clk 0:00:03.1]} 81... e2 {[%clk 0:01:45.6]} 82. Qh8+ {[%clk 0:00:03.4]} 82...
Kg5 {[%clk 0:01:46]} 83. Qe5+ {[%clk 0:00:04.3]} 83... Kh6 {[%clk 0:01:39.6]}
84. Qh8+ {[%clk 0:00:04.5]} 84... Kg5 {[%clk 0:01:38.4]} 85. Qe5+ {[%clk
0:00:05.4]} 85... Kh6 {[%clk 0:01:36.2]} 86. Qh8+ {[%clk 0:00:05.6]} 1/2-1/2

[Event "Late-Titled-Tuesday-Blitz-January-30-2024"]
[Site "Chess.com"]
[Date "2024.01.30"]
[Round "2"]
[White "HalfIsCrayfish"]
[Black "Elsa167"]
[Result "0-1"]
[WhiteElo "2584"]
[BlackElo "2867"]
[TimeControl "180+1"]
[EndTime "14:18:23 PST"]
[Termination "Elsa167 won by resignation"]

1. d4 {[%clk 0:03:00.9]} 1... Nf6 {[%clk 0:02:58.4]} 2. c4 {[%clk 0:03:00]} 2...
g6 {[%clk 0:02:57.2]} 3. f3 {[%clk 0:02:59.1]} 3... Bg7 {[%clk 0:02:57.2]} 4. e4
{[%clk 0:02:59.6]} 4... d6 {[%clk 0:02:57.7]} 5. Ne2 {[%clk 0:03:00.1]} 5... O-O
{[%clk 0:02:57.6]} 6. Be3 {[%clk 0:03:00.6]} 6... a6 {[%clk 0:02:55.8]} 7. Qd2
{[%clk 0:02:56.4]} 7... Nc6 {[%clk 0:02:55.8]} 8. Nbc3 {[%clk 0:02:47.9]} 8...
Bd7 {[%clk 0:02:54.8]} 9. Rc1 {[%clk 0:02:46.9]} 9... Rb8 {[%clk 0:02:46.4]} 10.
Nd1 {[%clk 0:02:39.9]} 10... e6 {[%clk 0:02:37.8]} 11. g3 {[%clk 0:02:33.6]}
11... b5 {[%clk 0:02:32.1]} 12. c5 {[%clk 0:02:32.5]} 12... dxc5 {[%clk
0:02:32.1]} 13. Rxc5 {[%clk 0:02:31.4]} 13... Re8 {[%clk 0:02:32.2]} 14. Bg2
{[%clk 0:02:26.1]} 14... Bf8 {[%clk 0:02:28.9]} 15. Rc1 {[%clk 0:02:21.5]} 15...
e5 {[%clk 0:02:27.9]} 16. d5 {[%clk 0:02:21.1]} 16... Ne7 {[%clk 0:02:26.7]} 17.
O-O {[%clk 0:02:16.9]} 17... c6 {[%clk 0:02:26.8]} 18. Bg5 {[%clk 0:01:52]}
18... Bg7 {[%clk 0:02:25]} 19. dxc6 {[%clk 0:01:25.4]} 19... Nxc6 {[%clk
0:02:22.2]} 20. Ne3 {[%clk 0:01:21.9]} 20... Nxe4 {[%clk 0:02:01.4]} 21. fxe4
{[%clk 0:00:51.6]} 21... Qxg5 {[%clk 0:02:01.1]} 22. Qxd7 {[%clk 0:00:44.7]}
22... Qxe3+ {[%clk 0:02:01.3]} 23. Rf2 {[%clk 0:00:41.6]} 23... Nd4 {[%clk
0:01:35.3]} 24. Qxf7+ {[%clk 0:00:23.9]} 24... Kh8 {[%clk 0:01:35.6]} 25. Rc7
{[%clk 0:00:24.4]} 25... Nxe2+ {[%clk 0:00:56.8]} 26. Kf1 {[%clk 0:00:24.2]}
26... Rg8 {[%clk 0:00:56.7]} 27. Rxe2 {[%clk 0:00:23.9]} 27... Qd4 {[%clk
0:00:56.7]} 28. Bf3 {[%clk 0:00:14.8]} 28... Rbf8 {[%clk 0:00:47.4]} 29. Qb3
{[%clk 0:00:15.1]} 29... Rf6 {[%clk 0:00:41.3]} 30. Rf7 {[%clk 0:00:11.6]} 30...
Rxf7 {[%clk 0:00:30.2]} 31. Qxf7 {[%clk 0:00:12.5]} 31... Rf8 {[%clk 0:00:29.4]}
32. Qb3 {[%clk 0:00:13.1]} 32... h5 {[%clk 0:00:22.5]} 33. Kg2 {[%clk
0:00:13.1]} 33... Kh7 {[%clk 0:00:19.9]} 34. Qe3 {[%clk 0:00:13.3]} 34... Rd8
{[%clk 0:00:17.9]} 35. Qxd4 {[%clk 0:00:13.2]} 35... exd4 {[%clk 0:00:18.8]} 36.
Rd2 {[%clk 0:00:10.1]} 36... d3 {[%clk 0:00:19.4]} 37. b3 {[%clk 0:00:10.5]}
37... Bc3 {[%clk 0:00:18.2]} 38. Rd1 {[%clk 0:00:10.6]} 38... Kg7 {[%clk
0:00:17.7]} 39. Kf2 {[%clk 0:00:10.3]} 39... Kf6 {[%clk 0:00:14.7]} 40. Ke3
{[%clk 0:00:09.4]} 40... d2 {[%clk 0:00:15.2]} 41. Ke2 {[%clk 0:00:05.7]} 41...
Ke5 {[%clk 0:00:14.9]} 42. Rf1 {[%clk 0:00:05.7]} 42... Bb4 {[%clk 0:00:12.1]}
43. Rd1 {[%clk 0:00:06.1]} 43... h4 {[%clk 0:00:10.6]} 44. gxh4 {[%clk 0:00:06]}
44... Rh8 {[%clk 0:00:10.5]} 45. h5 {[%clk 0:00:06.1]} 45... gxh5 {[%clk
0:00:10.6]} 46. h3 {[%clk 0:00:05.9]} 46... h4 {[%clk 0:00:10.7]} 47. Bg4 {[%clk
0:00:05.7]} 47... Kxe4 {[%clk 0:00:10.1]} 48. Rf1 {[%clk 0:00:06.2]} 48... Kd4
{[%clk 0:00:09.1]} 49. Kd1 {[%clk 0:00:05.9]} 49... Kc3 {[%clk 0:00:08.3]} 50.
Rf3+ {[%clk 0:00:04.2]} 50... Kb2 {[%clk 0:00:08.3]} 51. a3 {[%clk 0:00:04.8]}
51... Kxa3 {[%clk 0:00:08.4]} 52. Rd3 {[%clk 0:00:03.5]} 52... Re8 {[%clk
0:00:08.1]} 53. Kc2 {[%clk 0:00:04]} 53... Re7 {[%clk 0:00:06.1]} 54. Bd1 {[%clk
0:00:04.2]} 54... Rc7+ {[%clk 0:00:06.4]} 0-1

[Event "Late-Titled-Tuesday-Blitz-January-30-2024"]
[Site "Chess.com"]
[Date "2024.01.30"]
[Round "2"]
[White "arctic_t00"]
[Black "AsaHoffmann"]
[Result "1/2-1/2"]
[WhiteElo "2701"]
[BlackElo "2347"]
[TimeControl "180+1"]
[EndTime "14:18:23 PST"]
[Termination "Game drawn - insufficient material"]

1. g3 {[%clk 0:03:00.9]} 1... d6 {[%clk 0:02:58.9]} 2. Bg2 {[%clk 0:03:01]} 2...
Nf6 {[%clk 0:02:58.2]} 3. d4 {[%clk 0:03:01]} 3... c6 {[%clk 0:02:57.6]} 4. e4
{[%clk 0:03:00.5]} 4... Nbd7 {[%clk 0:02:57.3]} 5. Ne2 {[%clk 0:02:59.8]} 5...
e5 {[%clk 0:02:57.2]} 6. O-O {[%clk 0:02:58.5]} 6... Be7 {[%clk 0:02:56.7]} 7.
c4 {[%clk 0:02:51.4]} 7... Qc7 {[%clk 0:02:55.2]} 8. Nbc3 {[%clk 0:02:51.5]}
8... a6 {[%clk 0:02:55.1]} 9. d5 {[%clk 0:02:41.3]} 9... c5 {[%clk 0:02:52.7]}
10. h3 {[%clk 0:02:30.3]} 10... Rb8 {[%clk 0:02:52.4]} 11. a4 {[%clk 0:02:29.2]}
11... O-O {[%clk 0:02:51.4]} 12. g4 {[%clk 0:02:26.4]} 12... Ne8 {[%clk
0:02:49.1]} 13. Ng3 {[%clk 0:02:26]} 13... g6 {[%clk 0:02:45.9]} 14. Bh6 {[%clk
0:02:16.3]} 14... Ng7 {[%clk 0:02:45.3]} 15. Qd2 {[%clk 0:02:09.9]} 15... Qd8
{[%clk 0:02:44.9]} 16. Rae1 {[%clk 0:02:05.1]} 16... Kh8 {[%clk 0:02:43.4]} 17.
Kh2 {[%clk 0:02:00.3]} 17... Nf6 {[%clk 0:02:43.1]} 18. f4 {[%clk 0:01:47.3]}
18... exf4 {[%clk 0:02:40.4]} 19. Bxf4 {[%clk 0:01:45.4]} 19... Nd7 {[%clk
0:02:32.7]} 20. b3 {[%clk 0:01:41.1]} 20... Ne5 {[%clk 0:02:31.7]} 21. Re2
{[%clk 0:01:39.1]} 21... f6 {[%clk 0:02:26.6]} 22. Ref2 {[%clk 0:01:35.1]} 22...
Bd7 {[%clk 0:02:15.9]} 23. Bf3 {[%clk 0:00:40.5]} 23... b5 {[%clk 0:02:14.1]}
24. axb5 {[%clk 0:00:40.5]} 24... axb5 {[%clk 0:02:14]} 25. Be2 {[%clk
0:00:37.8]} 25... bxc4 {[%clk 0:02:01.5]} 26. Bxc4 {[%clk 0:00:38.3]} 26... Qa5
{[%clk 0:01:45.8]} 27. Bxe5 {[%clk 0:00:35.9]} 27... fxe5 {[%clk 0:01:45.1]} 28.
Rf7 {[%clk 0:00:36.1]} 28... Rxf7 {[%clk 0:01:36.5]} 29. Rxf7 {[%clk 0:00:36]}
29... Qd8 {[%clk 0:01:27.2]} 30. Qh6 {[%clk 0:00:31.1]} 30... Bf8 {[%clk
0:01:24.6]} 31. Qe3 {[%clk 0:00:15.5]} 31... Qe8 {[%clk 0:01:22.5]} 32. Qf2
{[%clk 0:00:14.3]} 32... Kg8 {[%clk 0:01:21.2]} 33. Rf3 {[%clk 0:00:14.6]} 33...
Be7 {[%clk 0:01:21]} 34. Nd1 {[%clk 0:00:12.6]} 34... Ra8 {[%clk 0:01:20.2]} 35.
Ne3 {[%clk 0:00:13]} 35... Bg5 {[%clk 0:01:19]} 36. Ng2 {[%clk 0:00:13.3]} 36...
Qe7 {[%clk 0:01:18.6]} 37. Nf1 {[%clk 0:00:11.6]} 37... Rf8 {[%clk 0:01:15.2]}
38. Rxf8+ {[%clk 0:00:10.5]} 38... Qxf8 {[%clk 0:01:15.2]} 39. Qxf8+ {[%clk
0:00:10.5]} 39... Kxf8 {[%clk 0:01:15.1]} 40. Kg3 {[%clk 0:00:10.6]} 40... Ne8
{[%clk 0:01:10.3]} 41. h4 {[%clk 0:00:10.6]} 41... Bc1 {[%clk 0:01:08.8]} 42.
Nge3 {[%clk 0:00:10.7]} 42... h6 {[%clk 0:01:06.7]} 43. Nc2 {[%clk 0:00:08.6]}
43... Nc7 {[%clk 0:01:04.6]} 44. Nh2 {[%clk 0:00:05.4]} 44... Nb5 {[%clk
0:01:03.5]} 45. Nf3 {[%clk 0:00:05.7]} 45... Nd4 {[%clk 0:01:02]} 46. Nfxd4
{[%clk 0:00:06.2]} 46... cxd4 {[%clk 0:01:01.4]} 47. Ne1 {[%clk 0:00:05.9]}
47... h5 {[%clk 0:00:54.5]} 48. gxh5 {[%clk 0:00:06]} 48... gxh5 {[%clk
0:00:54.3]} 49. Nd3 {[%clk 0:00:06.9]} 49... Be3 {[%clk 0:00:52.4]} 50. b4
{[%clk 0:00:07.3]} 50... Ke8 {[%clk 0:00:46.2]} 51. b5 {[%clk 0:00:07.9]} 51...
Kd8 {[%clk 0:00:46.2]} 52. Nb4 {[%clk 0:00:08]} 52... Kc7 {[%clk 0:00:45.7]} 53.
Nc6 {[%clk 0:00:08.2]} 53... Kb6 {[%clk 0:00:44.9]} 54. Bd3 {[%clk 0:00:06.8]}
54... Bd2 {[%clk 0:00:38]} 55. Be2 {[%clk 0:00:06.7]} 55... Be1+ {[%clk
0:00:37.4]} 56. Kg2 {[%clk 0:00:05.8]} 56... Bxh4 {[%clk 0:00:32.4]} 57. Bxh5
{[%clk 0:00:05.4]} 57... d3 {[%clk 0:00:28.9]} 58. Bd1 {[%clk 0:00:03]} 58...
Kxb5 {[%clk 0:00:27.1]} 59. Kf3 {[%clk 0:00:03.5]} 59... Bxc6 {[%clk 0:00:26.9]}
60. dxc6 {[%clk 0:00:03.7]} 60... Kxc6 {[%clk 0:00:26.8]} 61. Ke3 {[%clk
0:00:04.5]} 61... d5 {[%clk 0:00:25.3]} 62. exd5+ {[%clk 0:00:04.7]} 62... Kxd5
{[%clk 0:00:25.3]} 63. Kxd3 {[%clk 0:00:05.6]} 63... Bg5 {[%clk 0:00:25]} 64.
Bf3+ {[%clk 0:00:05.6]} 64... e4+ {[%clk 0:00:24.4]} 65. Bxe4+ {[%clk
0:00:06.3]} 1/2-1/2